[Event "Championnat d'Europe de Blitz"]
[Date "2024.12.09"]
[White "Dvirnyy, Danyyil"]
[Black "Kotnik, Simon"]
[WhiteElo "2491"]
[BlackElo "1950"]
[Round "1.39"]
[Result "1-0"]
[TimeControl "180+2"]

1. e4 {[%emt 00:00:01] [%clk 00:03:02]} c5 {[%emt 00:00:03] [%clk 00:03:03]} 2.
Nf3 {[%clk 00:03:02]} d6 {[%clk 00:03:04]} 3. d4 {[%clk 00:03:04]} cxd4 {[%emt
00:00:01] [%clk 00:03:05]} 4. Nxd4 {[%clk 00:03:05]} Nf6 {[%emt 00:00:02] [%clk
00:03:06]} 5. Nc3 {[%clk 00:03:06]} a6 {[%emt 00:00:01] [%clk 00:03:07]} 6. Bd3
{[%emt 00:00:01] [%clk 00:03:06]} b5 {[%emt 00:00:11] [%clk 00:02:58]} 7. O-O
{[%emt 00:00:03] [%clk 00:03:05]} Bb7 {[%emt 00:00:02] [%clk 00:02:59]} 8. Re1
{[%emt 00:00:01] [%clk 00:03:05]} e6 {[%emt 00:00:02] [%clk 00:03:00]} 9. Bg5
{[%emt 00:00:09] [%clk 00:02:57]} Be7 {[%emt 00:00:02] [%clk 00:03:00]} 10. Qf3
{[%emt 00:00:13] [%clk 00:02:46]} Nbd7 {[%emt 00:00:08] [%clk 00:02:54]} 11. Qh3
{[%emt 00:00:01] [%clk 00:02:47]} Ne5 {[%emt 00:00:09] [%clk 00:02:47]} 12. Bf1
{[%emt 00:00:06] [%clk 00:02:41]} O-O {[%emt 00:00:18] [%clk 00:02:33]} 13. Rad1
{[%emt 00:00:01] [%clk 00:02:42]} Qb6 {[%emt 00:00:02] [%clk 00:02:33]} 14. Be3
{[%emt 00:00:52] [%clk 00:01:51]} Qc7 {[%emt 00:00:08] [%clk 00:02:27]} 15. f3
{[%emt 00:00:01] [%clk 00:01:52]} Rac8 {[%emt 00:00:24] [%clk 00:02:05]} 16. Bd3
{[%emt 00:00:16] [%clk 00:01:38]} Nxd3 {[%emt 00:00:15] [%clk 00:01:52]} 17.
cxd3 {[%emt 00:00:01] [%clk 00:01:39]} d5 {[%emt 00:00:15] [%clk 00:01:39]} 18.
Rc1 {[%emt 00:00:03] [%clk 00:01:38]} Qd7 {[%emt 00:00:20] [%clk 00:01:21]} 19.
Nb3 {[%emt 00:00:03] [%clk 00:01:37]} b4 {[%emt 00:00:25] [%clk 00:00:58]} 20.
Ne2 {[%emt 00:00:01] [%clk 00:01:37]} Qa4 {[%clk 00:01:00]} 21. Bc5 {[%emt
00:00:17] [%clk 00:01:22]} Bxc5+ {[%emt 00:00:42] [%clk 00:00:20]} 22. Nxc5
{[%emt 00:00:01] [%clk 00:01:22]} Qb5 {[%emt 00:00:02] [%clk 00:00:21]} 23. Nxb7
{[%emt 00:00:10] [%clk 00:01:13]} Qxb7 {[%emt 00:00:01] [%clk 00:00:22]} 24. Qh4
{[%emt 00:00:03] [%clk 00:01:12]} Qb5 {[%emt 00:00:05] [%clk 00:00:20]} 25. e5
{[%emt 00:00:10] [%clk 00:01:04]} Nd7 {[%emt 00:00:03] [%clk 00:00:19]} 26. Qd4
{[%emt 00:00:01] [%clk 00:01:05]} a5 {[%emt 00:00:09] [%clk 00:00:13]} 27. h4
{[%emt 00:00:07] [%clk 00:00:59]} Qb6 {[%emt 00:00:06] [%clk 00:00:09]} 28. f4
{[%emt 00:00:04] [%clk 00:00:57]} Qxd4+ {[%emt 00:00:04] [%clk 00:00:08]} 29.
Nxd4 {[%clk 00:00:58]} Nc5 {[%emt 00:00:01] [%clk 00:00:09]} 30. Rcd1 {[%emt
00:00:10] [%clk 00:00:50]} Na4 {[%emt 00:00:03] [%clk 00:00:08]} 31. Rd2 {[%emt
00:00:01] [%clk 00:00:50]} Rc7 {[%emt 00:00:01] [%clk 00:00:09]} 32. h5 {[%emt
00:00:02] [%clk 00:00:50]} Rfc8 {[%emt 00:00:01] [%clk 00:00:10]} 33. Kf2 {[%emt
00:00:08] [%clk 00:00:44]} h6 {[%emt 00:00:01] [%clk 00:00:12]} 34. Nb3 {[%emt
00:00:03] [%clk 00:00:43]} Rc2 {[%emt 00:00:04] [%clk 00:00:10]} 35. Ree2 {[%emt
00:00:02] [%clk 00:00:43]} Rxd2 {[%emt 00:00:07] [%clk 00:00:04]} 36. Rxd2
{[%emt 00:00:02] [%clk 00:00:44]} Nc5 {[%emt 00:00:02] [%clk 00:00:04]} 37. Nd4
{[%emt 00:00:07] [%clk 00:00:38]} a4 {[%emt 00:00:02] [%clk 00:00:05]} 38. Ke3
{[%clk 00:00:39]} a3 {[%emt 00:00:02] [%clk 00:00:04]} 39. Rc2 {[%emt 00:00:05]
[%clk 00:00:35]} Rc7 {[%emt 00:00:01] [%clk 00:00:06]} 40. bxa3 {[%emt 00:00:03]
[%clk 00:00:34]} bxa3 {[%clk 00:00:07]} 41. Rc3 {[%emt 00:00:01] [%clk
00:00:35]} Na6 {[%emt 00:00:03] [%clk 00:00:06]} 42. Rxc7 {[%emt 00:00:10] [%clk
00:00:27]} Nxc7 {[%emt 00:00:01] [%clk 00:00:07]} 43. Kd2 {[%clk 00:00:28]} Kf8
{[%emt 00:00:01] [%clk 00:00:09]} 44. Kc3 {[%emt 00:00:01] [%clk 00:00:29]} Ke7
{[%emt 00:00:01] [%clk 00:00:10]} 45. Nc2 {[%emt 00:00:02] [%clk 00:00:29]} f6
{[%emt 00:00:03] [%clk 00:00:08]} 46. Nxa3 {[%emt 00:00:04] [%clk 00:00:27]}
fxe5 {[%clk 00:00:09]} 47. fxe5 {[%emt 00:00:01] [%clk 00:00:28]} Na6 {[%emt
00:00:08] [%clk 00:00:03]} 48. d4 {[%emt 00:00:02] [%clk 00:00:28]} Nc7 {[%emt
00:00:01] [%clk 00:00:04]} 49. Kb4 {[%emt 00:00:02] [%clk 00:00:28]} Kd7 {[%emt
00:00:03] [%clk 00:00:03]} 50. Nb5 {[%emt 00:00:02] [%clk 00:00:28]} Na6+ {[%emt
00:00:04]} 1-0

[Site "Europe Echecs"]

[Event "Championnat d'Europe de Blitz"]
[Date "2024.12.09"]
[White "Minas, Ioannis"]
[Black "Subelj, Jan"]
[WhiteElo "1987"]
[BlackElo "2526"]
[Round "1.40"]
[Result "0-1"]
[TimeControl "180+2"]

1. e4 {[%emt 00:00:01] [%clk 00:03:02]} c6 {[%emt 00:00:04] [%clk 00:03:03]} 2.
c4 {[%clk 00:03:03]} e6 {[%emt 00:00:01] [%clk 00:03:03]} 3. Nc3 {[%emt
00:00:02] [%clk 00:03:04]} Bb4 {[%emt 00:00:02] [%clk 00:03:02]} 4. a3 {[%emt
00:00:05] [%clk 00:03:01]} Bxc3 {[%emt 00:00:02] [%clk 00:03:02]} 5. dxc3 {[%emt
00:00:02] [%clk 00:03:00]} c5 {[%emt 00:00:07] [%clk 00:02:57]} 6. Bf4 {[%emt
00:00:12] [%clk 00:02:51]} Nc6 {[%emt 00:00:05] [%clk 00:02:54]} 7. Qg4 {[%emt
00:00:14] [%clk 00:02:39]} Qf6 {[%emt 00:00:20] [%clk 00:02:36]} 8. O-O-O {[%emt
00:00:28] [%clk 00:02:13]} e5 {[%emt 00:00:17] [%clk 00:02:20]} 9. Bg5 {[%emt
00:00:20] [%clk 00:01:56]} Qg6 {[%emt 00:00:21] [%clk 00:02:01]} 10. Qg3 {[%emt
00:00:12] [%clk 00:01:46]} h6 {[%emt 00:00:08] [%clk 00:01:55]} 11. Be3 {[%clk
00:01:47]} Qxg3 {[%emt 00:00:03] [%clk 00:01:54]} 12. hxg3 {[%emt 00:00:01]
[%clk 00:01:48]} b6 {[%emt 00:00:01] [%clk 00:01:55]} 13. b4 {[%emt 00:00:17]
[%clk 00:01:33]} Nf6 {[%emt 00:00:02] [%clk 00:01:55]} 14. f3 {[%emt 00:00:01]
[%clk 00:01:34]} Bb7 {[%emt 00:00:28] [%clk 00:01:29]} 15. g4 {[%emt 00:00:10]
[%clk 00:01:26]} Ke7 {[%emt 00:00:12] [%clk 00:01:19]} 16. Ne2 {[%emt 00:00:02]
[%clk 00:01:27]} d6 {[%emt 00:00:10] [%clk 00:01:11]} 17. Ng3 {[%emt 00:00:02]
[%clk 00:01:27]} Bc8 {[%clk 00:01:12]} 18. Kb2 {[%emt 00:00:01] [%clk 00:01:28]}
Be6 {[%emt 00:00:09] [%clk 00:01:05]} 19. Nf5+ {[%emt 00:00:02] [%clk 00:01:28]}
Bxf5 {[%emt 00:00:02] [%clk 00:01:05]} 20. gxf5 {[%emt 00:00:01] [%clk
00:01:29]} a5 {[%emt 00:00:05] [%clk 00:01:02]} 21. b5 {[%emt 00:00:05] [%clk
00:01:26]} Nb8 {[%emt 00:00:04] [%clk 00:01:00]} 22. Rd2 {[%emt 00:00:16] [%clk
00:01:12]} Nbd7 {[%emt 00:00:02] [%clk 00:01:01]} 23. Be2 {[%emt 00:00:01] [%clk
00:01:12]} Rad8 {[%emt 00:00:09] [%clk 00:00:54]} 24. Rhd1 {[%emt 00:00:01]
[%clk 00:01:13]} Ne8 {[%emt 00:00:09] [%clk 00:00:47]} 25. f4 {[%emt 00:00:13]
[%clk 00:01:02]} f6 {[%emt 00:00:03] [%clk 00:00:46]} 26. Bh5 {[%emt 00:00:03]
[%clk 00:01:01]} exf4 {[%emt 00:00:13] [%clk 00:00:35]} 27. Bxf4 {[%emt
00:00:02] [%clk 00:01:01]} Ne5 {[%clk 00:00:37]} 28. Bxe5 {[%emt 00:00:04] [%clk
00:00:58]} fxe5 {[%emt 00:00:01] [%clk 00:00:37]} 29. Bxe8 {[%emt 00:00:24]
[%clk 00:00:36]} Rhxe8 {[%emt 00:00:02] [%clk 00:00:38]} 30. Rh1 {[%emt
00:00:03] [%clk 00:00:34]} Kf6 {[%emt 00:00:02] [%clk 00:00:39]} 31. Rd3 {[%emt
00:00:02] [%clk 00:00:33]} Rd7 {[%emt 00:00:13] [%clk 00:00:28]} 32. Rg3 {[%clk
00:00:34]} Rf8 {[%emt 00:00:07] [%clk 00:00:23]} 33. Rd1 {[%emt 00:00:07] [%clk
00:00:30]} g5 {[%emt 00:00:09] [%clk 00:00:16]} 34. fxg6 {[%emt 00:00:02] [%clk
00:00:30]} Kg7 {[%clk 00:00:17]} 35. Rgd3 {[%emt 00:00:04] [%clk 00:00:28]} Rf6
{[%emt 00:00:01] [%clk 00:00:18]} 36. R1d2 {[%emt 00:00:04] [%clk 00:00:26]}
Rxg6 {[%emt 00:00:01] [%clk 00:00:19]} 37. Kc2 {[%emt 00:00:02] [%clk 00:00:26]}
Kf7 {[%emt 00:00:02] [%clk 00:00:19]} 38. Kd1 {[%clk 00:00:27]} Ke7 {[%clk
00:00:20]} 39. Ke1 {[%emt 00:00:01] [%clk 00:00:28]} Rd8 {[%clk 00:00:22]} 40.
Kf1 {[%emt 00:00:09] [%clk 00:00:21]} Rf8+ {[%emt 00:00:02] [%clk 00:00:22]} 41.
Kg1 {[%clk 00:00:22]} Rf4 {[%emt 00:00:01] [%clk 00:00:23]} 42. Re3 {[%emt
00:00:01] [%clk 00:00:23]} Rgg4 {[%emt 00:00:01] [%clk 00:00:23]} 43. Rde2
{[%emt 00:00:02] [%clk 00:00:24]} h5 {[%emt 00:00:01] [%clk 00:00:24]} 44. Kh2
{[%clk 00:00:25]} Rf1 {[%emt 00:00:04] [%clk 00:00:23]} 45. Rf3 {[%emt 00:00:09]
[%clk 00:00:18]} Rh4+ {[%emt 00:00:12] [%clk 00:00:13]} 46. Kg3 {[%emt 00:00:02]
[%clk 00:00:18]} Rg4+ {[%emt 00:00:01] [%clk 00:00:13]} 47. Kh2 {[%clk
00:00:20]} Ra1 {[%clk 00:00:14]} 48. Ref2 {[%emt 00:00:03] [%clk 00:00:19]} Rg7
{[%clk 00:00:15]} 49. Rf5 {[%emt 00:00:03] [%clk 00:00:18]} Rxa3 {[%emt
00:00:01] [%clk 00:00:16]} 50. Rxh5 {[%emt 00:00:14] [%clk 00:00:06]} Rxc3
{[%emt 00:00:01] [%clk 00:00:16]} 51. Rh8 {[%emt 00:00:03] [%clk 00:00:05]} Rf7
{[%emt 00:00:09] [%clk 00:00:10]} 52. Rxf7+ {[%emt 00:00:05]} Kxf7 0-1

[Site "Europe Echecs"]

[Event "Championnat d'Europe de Blitz"]
[Date "2024.12.09"]
[White "Laurusas, Tomas"]
[Black "Kontos, Nikolaos"]
[WhiteElo "2578"]
[BlackElo "1751"]
[Round "1.41"]
[Result "0-1"]
[TimeControl "180+2"]

1. c4 {[%clk 00:03:02]} c6 {[%emt 00:00:04] [%clk 00:03:00]} 2. Nf3 {[%emt
00:00:04] [%clk 00:03:01]} d5 {[%emt 00:00:10] [%clk 00:02:52]} 3. g3 {[%emt
00:00:01] [%clk 00:03:01]} Nf6 {[%emt 00:00:06] [%clk 00:02:48]} 4. Bg2 {[%emt
00:00:01] [%clk 00:03:02]} e6 {[%emt 00:00:11] [%clk 00:02:39]} 5. b3 {[%emt
00:00:06] [%clk 00:02:58]} Be7 {[%emt 00:00:03] [%clk 00:02:38]} 6. O-O {[%emt
00:00:03] [%clk 00:02:57]} O-O {[%emt 00:00:04] [%clk 00:02:37]} 7. Bb2 {[%emt
00:00:02] [%clk 00:02:57]} b6 {[%emt 00:00:05] [%clk 00:02:34]} 8. d3 {[%emt
00:00:05] [%clk 00:02:55]} Bb7 {[%emt 00:00:10] [%clk 00:02:26]} 9. Nbd2 {[%emt
00:00:07] [%clk 00:02:50]} c5 {[%emt 00:00:10] [%clk 00:02:18]} 10. e3 {[%emt
00:00:33] [%clk 00:02:20]} Nc6 {[%emt 00:00:08] [%clk 00:02:12]} 11. Qe2 {[%emt
00:00:02] [%clk 00:02:20]} Qc7 {[%emt 00:00:19] [%clk 00:01:54]} 12. Rac1 {[%emt
00:00:03] [%clk 00:02:20]} Rad8 {[%emt 00:00:06] [%clk 00:01:49]} 13. a3 {[%emt
00:00:04] [%clk 00:02:18]} Qb8 {[%emt 00:00:04] [%clk 00:01:47]} 14. Rfd1 {[%emt
00:00:12] [%clk 00:02:08]} Rd7 {[%emt 00:00:27] [%clk 00:01:22]} 15. cxd5 {[%emt
00:00:02] [%clk 00:02:08]} Nxd5 {[%emt 00:00:06] [%clk 00:01:17]} 16. d4 {[%emt
00:00:01] [%clk 00:02:09]} cxd4 {[%emt 00:00:10] [%clk 00:01:09]} 17. Nxd4
{[%emt 00:00:02] [%clk 00:02:10]} Nxd4 {[%emt 00:00:03] [%clk 00:01:07]} 18.
exd4 {[%emt 00:00:01] [%clk 00:02:11]} Nf6 {[%emt 00:00:05] [%clk 00:01:04]} 19.
Nf3 {[%emt 00:00:01] [%clk 00:02:11]} Bxf3 {[%emt 00:00:07] [%clk 00:00:59]} 20.
Bxf3 {[%emt 00:00:03] [%clk 00:02:11]} Nd5 {[%emt 00:00:11] [%clk 00:00:50]} 21.
h4 {[%emt 00:00:03] [%clk 00:02:10]} Bf6 {[%emt 00:00:05] [%clk 00:00:46]} 22.
h5 {[%emt 00:00:14] [%clk 00:01:58]} h6 {[%emt 00:00:01] [%clk 00:00:47]} 23.
Be4 {[%emt 00:00:04] [%clk 00:01:56]} Rc8 {[%emt 00:00:06] [%clk 00:00:43]} 24.
Rc4 {[%emt 00:00:04] [%clk 00:01:54]} Ne7 {[%emt 00:00:18] [%clk 00:00:27]} 25.
Bb1 {[%emt 00:00:12] [%clk 00:01:44]} Rxc4 {[%emt 00:00:05] [%clk 00:00:25]} 26.
bxc4 {[%emt 00:00:01] [%clk 00:01:45]} Qc7 {[%emt 00:00:05] [%clk 00:00:22]} 27.
a4 {[%emt 00:00:20] [%clk 00:01:27]} Nf5 {[%emt 00:00:01] [%clk 00:00:22]} 28.
Bxf5 {[%emt 00:00:39] [%clk 00:00:49]} exf5 {[%emt 00:00:02] [%clk 00:00:22]}
29. Rd2 {[%emt 00:00:11] [%clk 00:00:41]} Re7 {[%emt 00:00:03] [%clk 00:00:21]}
30. Qd3 {[%emt 00:00:09] [%clk 00:00:34]} f4 {[%emt 00:00:01] [%clk 00:00:22]}
31. g4 {[%emt 00:00:05] [%clk 00:00:31]} Bg5 {[%emt 00:00:05] [%clk 00:00:19]}
32. Rd1 {[%emt 00:00:06] [%clk 00:00:26]} f3 {[%emt 00:00:03] [%clk 00:00:18]}
33. Qxf3 {[%emt 00:00:03] [%clk 00:00:25]} Qxc4 {[%emt 00:00:01] [%clk
00:00:18]} 34. d5 {[%emt 00:00:03] [%clk 00:00:24]} Re4 {[%emt 00:00:03] [%clk
00:00:17]} 35. d6 {[%emt 00:00:16] [%clk 00:00:10]} Rxg4+ {[%emt 00:00:01] [%clk
00:00:18]} 36. Kh2 {[%emt 00:00:02] [%clk 00:00:10]} Rf4 {[%emt 00:00:03] [%clk
00:00:16]} 37. Qd5 {[%emt 00:00:09] [%clk 00:00:04]} Rh4+ {[%emt 00:00:01] [%clk
00:00:16]} 38. Kg2 {[%clk 00:00:05]} Qg4+ {[%emt 00:00:02] [%clk 00:00:17]} 39.
Kf1 {[%clk 00:00:07]} Rh3 {[%emt 00:00:10] [%clk 00:00:09]} 40. Rd3 {[%emt
00:00:06] [%clk 00:00:03]} Rh2 {[%emt 00:00:03] [%clk 00:00:07]} 41. d7 {[%clk
00:00:05]} Bd8 {[%clk 00:00:08]} 42. Qe5 {[%emt 00:00:03] [%clk 00:00:03]} Rh1#
{[%emt 00:00:06]} 0-1

[Site "Europe Echecs"]

[Event "Championnat d'Europe de Blitz"]
[Date "2024.12.09"]
[White "Saraci, Nderim"]
[Black "Grodotzki, Kenneth"]
[WhiteElo "2431"]
[BlackElo "2002"]
[Round "1.43"]
[Result "1-0"]
[TimeControl "180+2"]

1. Nf3 {[%emt 00:00:01] [%clk 00:03:02]} f5 {[%emt 00:00:02] [%clk 00:03:02]} 2.
d4 {[%emt 00:00:04] [%clk 00:03:00]} Nf6 {[%emt 00:00:04] [%clk 00:03:00]} 3.
Nc3 {[%emt 00:00:02] [%clk 00:03:00]} g6 {[%emt 00:00:12] [%clk 00:02:50]} 4. g3
{[%emt 00:00:08] [%clk 00:02:55]} Bg7 {[%emt 00:00:08] [%clk 00:02:44]} 5. Bg2
{[%emt 00:00:02] [%clk 00:02:55]} O-O {[%emt 00:00:02] [%clk 00:02:44]} 6. O-O
{[%emt 00:00:02] [%clk 00:02:54]} d6 {[%emt 00:00:31] [%clk 00:02:15]} 7. Re1
{[%emt 00:00:03] [%clk 00:02:53]} Ne4 {[%emt 00:00:40] [%clk 00:01:37]} 8. Bf4
{[%emt 00:00:02] [%clk 00:02:53]} Qe8 {[%emt 00:00:19] [%clk 00:01:20]} 9. h4
{[%emt 00:00:19] [%clk 00:02:36]} c6 {[%emt 00:00:08] [%clk 00:01:14]} 10. Qc1
{[%emt 00:00:29] [%clk 00:02:09]} Nd7 {[%emt 00:00:23] [%clk 00:00:53]} 11. Bh6
{[%emt 00:00:04] [%clk 00:02:07]} Nxc3 {[%emt 00:00:11] [%clk 00:00:45]} 12.
bxc3 {[%emt 00:00:02] [%clk 00:02:07]} e5 {[%emt 00:00:05] [%clk 00:00:41]} 13.
Bxg7 {[%emt 00:00:04] [%clk 00:02:05]} Kxg7 {[%clk 00:00:43]} 14. dxe5 {[%emt
00:00:11] [%clk 00:01:57]} dxe5 {[%emt 00:00:03] [%clk 00:00:41]} 15. Qd2 {[%emt
00:00:04] [%clk 00:01:56]} Nf6 {[%emt 00:00:10] [%clk 00:00:33]} 16. Rad1 {[%emt
00:00:05] [%clk 00:01:52]} Ne4 {[%emt 00:00:03] [%clk 00:00:32]} 17. Qe3 {[%emt
00:00:03] [%clk 00:01:51]} Qe7 {[%emt 00:00:09] [%clk 00:00:25]} 18. a4 {[%emt
00:00:12] [%clk 00:01:41]} Qf6 {[%clk 00:00:26]} 19. a5 {[%emt 00:00:04] [%clk
00:01:40]} a6 {[%emt 00:00:02] [%clk 00:00:27]} 20. Ng5 {[%emt 00:00:12] [%clk
00:01:28]} Nxg5 {[%emt 00:00:08] [%clk 00:00:21]} 21. hxg5 {[%emt 00:00:01]
[%clk 00:01:29]} Qe7 {[%clk 00:00:22]} 22. f4 {[%emt 00:00:06] [%clk 00:01:25]}
e4 {[%emt 00:00:03] [%clk 00:00:21]} 23. Qd4+ {[%emt 00:00:06] [%clk 00:01:22]}
Kg8 {[%clk 00:00:23]} 24. Qd6 {[%emt 00:00:04] [%clk 00:01:20]} Qf7 {[%emt
00:00:08] [%clk 00:00:16]} 25. Qc5 {[%emt 00:00:06] [%clk 00:01:17]} Be6 {[%clk
00:00:18]} 26. Rd6 {[%emt 00:00:01] [%clk 00:01:17]} Rfd8 {[%emt 00:00:02] [%clk
00:00:19]} 27. Red1 {[%emt 00:00:01] [%clk 00:01:18]} Rxd6 {[%emt 00:00:02]} 28.
Qxd6 {[%emt 00:00:04] [%clk 00:01:15]} Re8 {[%emt 00:00:04] [%clk 00:00:17]} 29.
e3 {[%emt 00:00:03] [%clk 00:01:14]} Bc4 {[%emt 00:00:04] [%clk 00:00:16]} 30.
Rd4 {[%emt 00:00:04] [%clk 00:01:11]} Bb5 {[%clk 00:00:17]} 31. g4 {[%emt
00:00:11] [%clk 00:01:03]} Qe7 {[%emt 00:00:02] [%clk 00:00:18]} 32. gxf5 {[%emt
00:00:02] [%clk 00:01:02]} Qxd6 {[%emt 00:00:01] [%clk 00:00:19]} 33. Rxd6
{[%emt 00:00:02] [%clk 00:01:02]} gxf5 {[%emt 00:00:01] [%clk 00:00:20]} 34. Rf6
{[%emt 00:00:04] [%clk 00:01:00]} Rf8 {[%clk 00:00:21]} 35. Rxf8+ {[%emt
00:00:08] [%clk 00:00:56]} Kxf8 {[%clk 00:00:23]} 36. Bh3 {[%clk 00:00:57]} Ba4
{[%emt 00:00:16] [%clk 00:00:09]} 37. Bxf5 {[%emt 00:00:03] [%clk 00:00:56]}
Bxc2 {[%emt 00:00:01] [%clk 00:00:10]} 38. Bxh7 {[%emt 00:00:04] [%clk
00:00:55]} Kg7 {[%clk 00:00:12]} 39. Bf5 {[%emt 00:00:02] [%clk 00:00:55]} Bd3
{[%emt 00:00:02] [%clk 00:00:12]} 40. Bc8 {[%emt 00:00:02] [%clk 00:00:56]} c5
{[%emt 00:00:03] [%clk 00:00:10]} 41. Bxb7 {[%emt 00:00:01] [%clk 00:00:56]} Kg6
{[%emt 00:00:02] [%clk 00:00:10]} 42. Kf2 {[%emt 00:00:02] [%clk 00:00:56]} 1-0

[Site "Europe Echecs"]

[Event "Championnat d'Europe de Blitz"]
[Date "2024.12.09"]
[White "Martinkus, Rolandas"]
[Black "Paichadze, Luka"]
[WhiteElo "1961"]
[BlackElo "2532"]
[Round "1.44"]
[Result "0-1"]
[TimeControl "180+2"]

1. Nf3 {[%clk 00:03:01]} Nf6 {[%emt 00:00:02] [%clk 00:03:03]} 2. c4 {[%clk
00:03:03]} e6 {[%emt 00:00:01] [%clk 00:03:04]} 3. g3 {[%emt 00:00:06] [%clk
00:02:58]} a6 {[%emt 00:00:01] [%clk 00:03:05]} 4. Bg2 {[%emt 00:00:04] [%clk
00:02:56]} b5 {[%clk 00:03:06]} 5. b3 {[%emt 00:00:02] [%clk 00:02:56]} Bb7
{[%emt 00:00:02] [%clk 00:03:07]} 6. O-O {[%emt 00:00:01] [%clk 00:02:56]} c5
{[%emt 00:00:02] [%clk 00:03:08]} 7. Bb2 {[%emt 00:00:06] [%clk 00:02:52]} Be7
{[%emt 00:00:07] [%clk 00:03:02]} 8. Nc3 {[%emt 00:00:05] [%clk 00:02:50]} Qb6
{[%clk 00:03:03]} 9. Rc1 {[%emt 00:00:17] [%clk 00:02:34]} Nc6 {[%emt 00:00:16]
[%clk 00:02:49]} 10. d3 {[%emt 00:00:16] [%clk 00:02:20]} O-O {[%emt 00:00:07]
[%clk 00:02:44]} 11. e4 {[%emt 00:00:01] [%clk 00:02:21]} d6 {[%emt 00:00:01]
[%clk 00:02:45]} 12. Re1 {[%emt 00:00:17] [%clk 00:02:06]} b4 {[%emt 00:00:04]
[%clk 00:02:43]} 13. Nb1 {[%emt 00:00:05] [%clk 00:02:03]} e5 {[%emt 00:00:04]
[%clk 00:02:41]} 14. Nbd2 {[%emt 00:00:06] [%clk 00:01:59]} a5 {[%clk 00:02:42]}
15. Nf1 {[%emt 00:00:02] [%clk 00:01:59]} a4 {[%emt 00:00:02] [%clk 00:02:43]}
16. Ne3 {[%emt 00:00:02] [%clk 00:01:58]} axb3 {[%emt 00:00:02] [%clk 00:02:44]}
17. axb3 {[%emt 00:00:01] [%clk 00:01:59]} Ra2 {[%emt 00:00:02] [%clk 00:02:44]}
18. Rb1 {[%emt 00:00:07] [%clk 00:01:53]} Re8 {[%emt 00:00:39] [%clk 00:02:07]}
19. Nd5 {[%emt 00:00:02] [%clk 00:01:53]} Nxd5 {[%emt 00:00:13] [%clk 00:01:56]}
20. cxd5 {[%emt 00:00:09] [%clk 00:01:47]} Na5 {[%emt 00:00:18] [%clk 00:01:39]}
21. Nd2 {[%emt 00:00:05] [%clk 00:01:44]} Bg5 {[%emt 00:00:03] [%clk 00:01:38]}
22. f4 {[%emt 00:00:15] [%clk 00:01:31]} exf4 {[%emt 00:00:10] [%clk 00:01:30]}
23. Qg4 {[%clk 00:01:32]} Rxb2 {[%emt 00:00:05] [%clk 00:01:27]} 24. Rxb2 {[%emt
00:00:03] [%clk 00:01:31]} Bf6 {[%clk 00:01:28]} 25. e5 {[%emt 00:00:21] [%clk
00:01:13]} Bxe5 {[%emt 00:00:18] [%clk 00:01:12]} 26. Ne4 {[%emt 00:00:01] [%clk
00:01:13]} Kf8 {[%emt 00:00:08] [%clk 00:01:06]} 27. Rbe2 {[%emt 00:00:07] [%clk
00:01:08]} c4+ {[%emt 00:00:02] [%clk 00:01:06]} 28. d4 {[%emt 00:00:16] [%clk
00:00:53]} Qxd4+ {[%emt 00:00:10] [%clk 00:00:58]} 29. Kh1 {[%emt 00:00:01]
[%clk 00:00:55]} f3 {[%emt 00:00:09] [%clk 00:00:51]} 30. Qxf3 {[%emt 00:00:10]
[%clk 00:00:47]} Bxd5 {[%emt 00:00:06] [%clk 00:00:47]} 31. Qf5 {[%emt 00:00:15]
[%clk 00:00:34]} g6 {[%emt 00:00:03] [%clk 00:00:46]} 32. Qd7 {[%emt 00:00:11]
[%clk 00:00:25]} Be6 {[%emt 00:00:05] [%clk 00:00:43]} 33. Qa4 {[%emt 00:00:06]
[%clk 00:00:22]} Nxb3 {[%emt 00:00:02] [%clk 00:00:43]} 34. Qxb4 {[%emt
00:00:09] [%clk 00:00:14]} c3 {[%emt 00:00:07] [%clk 00:00:38]} 35. Qxd4 {[%emt
00:00:10] [%clk 00:00:06]} Nxd4 {[%emt 00:00:02] [%clk 00:00:39]} 0-1

[Site "Europe Echecs"]